bitfinex/quotes_SOLUSD_20241121
["timestamp","ask_amount","ask_price","bid_price","bid_amount"]
[1732203664771,31.09684237,244.6,244.51,31.09684237]
[1732203664951,31.09684237,244.6,244.41,0.5]
[1732203664952,31.09684237,244.54,244.45,31.09684237]
[1732203665154,31.09684237,244.58,244.49,31.09684237]
[1732203665484,4.0881,244.61,244.53,31.09684237]
[1732203666755,31.09684237,244.64,244.55,31.09684237]
[1732203666962,31.09684237,244.64,244.44,31.09684237]
[1732203666963,31.09684237,244.68,244.59,31.09684237]
[1732203667150,31.09684237,244.7,244.61,31.09684237]
[1732203667546,31.09684237,244.64,244.54,31.09684237]
[1732203667751,14.3038,244.69,244.58,31.09684237]
[1732203667752,31.09684237,244.68,244.58,31.09684237]
[1732203667946,31.09684237,244.68,244.55,20.0]
[1732203667947,31.09684237,244.66,244.56,31.09684237]
[1732203668175,31.09684237,244.68,244.58,31.09684237]
[1732203668569,31.09684237,244.66,244.56,31.09684237]
[1732203668771,4.0873,244.66,244.58,31.09684237]
[1732203668970,4.0873,244.66,244.48,20.0]
[1732203668971,35.18414237,244.66,244.56,31.09684237]
[1732203669153,31.09684237,244.64,244.56,31.09684237]
[1732203669366,31.09684237,244.64,244.54,31.09684237]
[1732203669875,31.09684237,244.58,244.47,31.09684237]
[1732203670088,31.09684237,244.51,244.42,31.09684237]
[1732203670255,24.276884,244.65,244.38,31.09684237]
[1732203670256,31.09684237,244.47,244.38,31.09684237]
[1732203670455,31.09684237,244.47,244.36,31.09684237]
[1732203670664,31.09684237,244.51,244.4,31.09684237]
[1732203670871,31.09684237,244.43,244.26,13.1016]
[1732203671069,31.09684237,244.37,244.27,31.09684237]
[1732203671260,14.3148,244.5,244.2,0.5]
[1732203671456,4.0891,244.55,244.44,31.09684237]
[1732203671680,20.0,244.62,244.49,31.09684237]
[1732203672060,31.09684237,244.57,244.47,31.09684237]
[1732203672262,31.09684237,244.57,244.45,31.09684237]
[1732203672464,31.09684237,244.55,244.45,31.09684237]
[1732203672787,4.0886,244.58,244.49,31.09684237]
[1732203673083,4.0886,244.58,244.47,31.09684237]
[1732203673379,31.09684237,244.51,244.36,12.7044]
[1732203673560,31.09684237,244.47,244.37,31.09684237]
[1732203673987,31.09684237,244.45,244.35,31.09684237]
[1732203674288,31.09684237,244.45,244.2,31.09684237]
[1732203674289,31.09684237,244.39,244.28,31.09684237]
[1732203674573,31.09684237,244.37,244.26,31.09684237]
[1732203674776,4.0923,244.36,244.26,31.09684237]
[1732203674980,31.09684237,244.31,244.2,31.09684237]
[1732203675162,31.09684237,244.29,244.18,31.09684237]
[1732203675359,43.776884,244.35,244.18,31.09684237]
[1732203675666,31.09684237,244.34,244.23,31.09684237]
[1732203675873,43.776884,244.35,244.25,31.09684237]
[1732203676077,43.776884,244.29,244.19,31.09684237]
[1732203676288,31.09684237,244.28,244.17,31.09684237]
[1732203676456,43.776884,244.35,244.08,12.394]
[1732203676457,31.09684237,244.24,244.08,12.394]
[1732203676664,31.09684237,244.24,244.13,31.09684237]
[1732203676665,23.776884,244.23,244.13,31.09684237]
[1732203676858,35.19144237,244.22,244.13,31.09684237]
[1732203677079,35.19114237,244.24,244.13,35.19284237]
[1732203677359,35.19114237,244.24,244.15,31.09684237]
[1732203677979,31.09684237,244.28,244.17,31.09684237]
[1732203678362,31.09684237,244.32,244.2,31.09684237]
[1732203678571,31.09684237,244.36,244.27,31.09684237]
[1732203678890,4.0922,244.37,244.27,31.09684237]
[1732203679183,31.09684237,244.36,244.25,31.09684237]
[1732203679362,12.1952,244.47,244.29,31.09684237]
[1732203679363,31.09684237,244.4,244.29,31.09684237]
[1732203679559,35.18754237,244.46,244.35,31.09684237]
[1732203679780,4.0907,244.46,244.37,31.09684237]
[1732203679977,35.18754237,244.46,244.35,31.09684237]
[1732203680177,35.18754237,244.46,244.2,31.59684237]
[1732203680178,31.09684237,244.44,244.2,31.59684237]
[1732203680396,31.09684237,244.44,244.25,31.09684237]
[1732203680397,31.09684237,244.36,244.25,31.09684237]
[1732203680557,31.09684237,244.34,244.25,31.09684237]
[1732203680757,31.59684237,244.44,244.23,31.09684237]
[1732203680758,31.09684237,244.32,244.23,31.09684237]
[1732203680962,31.09684237,244.34,244.25,31.09684237]
[1732203681181,31.09684237,244.32,244.21,31.09684237]
[1732203681392,31.09684237,244.28,244.19,31.09684237]
[1732203681565,31.09684237,244.28,244.17,31.09684237]
[1732203681887,31.09684237,244.3,244.19,31.09684237]
[1732203682075,14.3189,244.43,244.25,31.09684237]
[1732203682277,31.09684237,244.36,244.25,31.09684237]
[1732203682464,31.09684237,244.32,244.23,31.09684237]
[1732203682668,31.09684237,244.32,244.21,31.09684237]
[1732203682971,35.18994237,244.32,244.23,31.09684237]
[1732203683185,35.18994237,244.32,244.21,35.19154237]
[1732203683401,35.18994237,244.32,244.21,31.09684237]
[1732203683563,23.776884,244.31,244.21,31.09684237]
[1732203683893,31.09684237,244.36,244.26,31.09684237]
[1732203684181,31.09684237,244.47,244.19,31.8244]
[1732203684361,31.09684237,244.38,244.2,20.0]
[1732203684576,31.09684237,244.4,244.29,31.09684237]
[1732203684766,31.09684237,244.42,244.33,31.09684237]
[1732203684985,31.09684237,244.42,244.2,20.0]
[1732203684986,31.09684237,244.47,244.37,31.09684237]
[1732203685176,31.09684237,244.53,244.43,31.09684237]
[1732203685440,31.09684237,244.55,244.46,31.09684237]
[1732203685682,31.09684237,244.57,244.46,31.09684237]
[1732203685883,31.09684237,244.62,244.51,31.09684237]
[1732203686093,4.0873,244.66,244.57,31.09684237]
[1732203686383,0.5,244.77,244.59,31.09684237]
[1732203686384,4.087,244.68,244.59,31.09684237]
[1732203686765,4.087,244.68,244.46,0.5]
[1732203686766,31.09684237,244.61,244.51,31.09684237]
[1732203687001,31.09684237,244.55,244.45,31.09684237]
[1732203687288,31.09684237,244.62,244.38,1.0]
[1732203687487,31.09684237,244.61,244.39,23.776884]
[1732203687659,0.5,244.69,244.36,0.5]
[1732203687660,0.5,244.67,244.36,0.5]
[1732203687865,0.5,244.63,244.34,0.5]
[1732203688060,0.5,244.67,244.3,43.9551]
[1732203688061,0.5,244.59,244.3,43.9551]
[1732203688372,0.5,244.58,244.3,43.9551]
[1732203688688,31.09684237,244.49,244.38,31.09684237]
[1732203688988,23.776884,244.59,244.32,31.09684237]
[1732203688989,31.09684237,244.58,244.48,31.09684237]
[1732203689198,4.0874,244.65,244.44,31.09684237]
[1732203689199,31.09684237,244.54,244.44,31.09684237]
[1732203689374,31.09684237,244.56,244.46,31.09684237]
[1732203689774,0.5,244.52,244.3,43.9551]
[1732203689967,12.8237,244.57,244.23,0.5]
[1732203690163,0.5,244.54,244.19,12.6003]
[1732203690367,12.3237,244.57,244.19,12.6003]
[1732203690368,24.276884,244.5,244.19,12.6003]
[1732203690790,31.09684237,244.39,244.29,31.09684237]
[1732203690993,31.09684237,244.45,244.35,31.09684237]
[1732203691166,31.09684237,244.45,244.32,4.0929]
[1732203691167,31.09684237,244.47,244.37,31.09684237]
[1732203691585,31.09684237,244.47,244.32,4.0929]
[1732203691586,31.09684237,244.49,244.39,31.09684237]
[1732203691793,31.09684237,244.57,244.47,31.09684237]
[1732203692091,31.09684237,244.65,244.55,31.09684237]
[1732203692296,31.09684237,244.63,244.53,31.09684237]
[1732203692466,31.09684237,244.56,244.42,33.2482]
[1732203692665,31.09684237,244.54,244.44,31.09684237]
[1732203693276,31.09684237,244.5,244.4,31.09684237]
[1732203693470,31.09684237,244.52,244.4,31.09684237]
[1732203693789,31.09684237,244.52,244.42,31.09684237]
[1732203694100,4.0894,244.54,244.39,31.09684237]
[1732203694267,31.09684237,244.45,244.35,31.09684237]
[1732203694870,31.09684237,244.49,244.39,31.09684237]
[1732203695069,31.09684237,244.47,244.39,31.09684237]
[1732203695378,31.09684237,244.49,244.39,31.09684237]
[1732203695884,4.0891,244.55,244.39,31.09684237]
[1732203695885,31.09684237,244.47,244.4,20.0]
[1732203696187,31.09684237,244.47,244.37,31.09684237]
[1732203696393,31.09684237,244.47,244.38,20.0]
[1732203696604,31.09684237,244.45,244.35,31.09684237]
[1732203696814,31.09684237,244.56,244.35,31.09684237]
[1732203696815,31.09684237,244.43,244.35,31.09684237]
[1732203697105,31.09684237,244.43,244.3,12.0333]
[1732203697106,31.09684237,244.43,244.33,31.09684237]
[1732203697293,31.09684237,244.45,244.35,31.09684237]
[1732203698403,31.09684237,244.41,244.36,4.0923]
[1732203698607,31.09684237,244.43,244.36,4.0923]
[1732203699304,31.59684237,244.56,244.3,12.0333]
[1732203699305,31.09684237,244.42,244.34,4.0926]
[1732203699520,14.3125,244.54,244.37,31.09684237]
[1732203699521,31.09684237,244.47,244.37,31.09684237]
[1732203699983,31.09684237,244.49,244.39,31.09684237]
[1732203700180,31.09684237,244.47,244.37,31.09684237]
[1732203700381,31.09684237,244.47,244.38,24.0919]
[1732203700619,31.09684237,244.45,244.35,31.09684237]
[1732203700784,31.09684237,244.43,244.34,20.0]
[1732203701298,31.09684237,244.45,244.35,31.09684237]
[1732203701495,31.09684237,244.45,244.37,31.09684237]
[1732203701902,31.09684237,244.45,244.35,31.09684237]
[1732203702297,31.09684237,244.45,244.36,24.0923]
[1732203703187,31.09684237,244.43,244.36,4.0923]
[1732203703516,31.09684237,244.45,244.36,4.0923]
[1732203703809,31.09684237,244.47,244.38,20.0]
[1732203704021,31.09684237,244.52,244.43,31.09684237]
[1732203704386,31.09684237,244.52,244.44,4.0909]
[1732203704587,31.09684237,244.54,244.46,20.0]
[1732203704821,31.09684237,244.64,244.52,31.09684237]
[1732203705114,35.18404237,244.67,244.58,31.09684237]
[1732203705488,31.09684237,244.67,244.58,31.09684237]
[1732203705687,31.09684237,244.73,244.63,20.0]
[1732203705909,31.09684237,244.75,244.66,31.09684237]
[1732203706110,31.09684237,244.77,244.68,31.09684237]
[1732203706904,31.09684237,244.79,244.7,31.09684237]
[1732203707115,31.09684237,244.81,244.72,31.09684237]
[1732203707488,31.09684237,244.79,244.7,31.09684237]
[1732203707683,31.09684237,244.8,244.61,0.5]
[1732203707887,31.09684237,244.82,244.73,31.09684237]
[1732203708121,12.6809,244.89,244.59,20.0]
[1732203708122,31.09684237,244.88,244.79,31.09684237]
[1732203708287,12.1403,245.0,244.84,31.09684237]
[1732203708288,31.09684237,244.93,244.84,31.09684237]
[1732203708489,31.09684237,244.97,244.88,31.09684237]
[1732203708685,0.5,244.97,244.64,20.5]
[1732203708916,0.5,244.95,244.64,20.5]
[1732203709211,0.5,244.92,244.59,0.5]
[1732203709525,1.0,244.87,244.56,3.01655163]
[1732203709741,31.09684237,244.65,244.56,3.01655163]
[1732203709894,23.776884,244.6,244.56,3.01655163]
[1732203710210,31.09684237,244.61,244.52,31.09684237]
[1732203710511,0.5,244.71,244.44,31.59684237]
[1732203710512,23.776884,244.71,244.44,31.59684237]
[1732203710713,23.776884,244.71,244.44,31.09684237]
[1732203711014,23.776884,244.71,244.46,0.5]
[1732203711195,23.776884,244.71,244.44,31.59684237]
[1732203711594,31.09684237,244.64,244.53,31.09684237]
[1732203711906,4.0863,244.72,244.44,32.09684237]
[1732203711907,31.09684237,244.66,244.56,20.0]
[1732203712587,31.09684237,244.8,244.6,20.0]
[1732203712588,31.09684237,244.7,244.6,20.0]
[1732203712793,4.0848,244.81,244.67,31.09684237]
[1732203713022,31.09684237,244.8,244.72,20.0]
[1732203713187,31.09684237,244.82,244.72,20.0]
[1732203714001,31.09684237,244.75,244.64,31.09684237]
[1732203714204,31.09684237,244.8,244.64,31.09684237]
[1732203714205,31.09684237,244.73,244.64,31.09684237]
[1732203714396,31.09684237,244.65,244.55,12.3608]
[1732203714719,4.0851,244.79,244.55,12.3608]
[1732203715013,4.0834,244.89,244.6,0.5]
[1732203715317,4.0834,244.89,244.62,1.0]
[1732203715509,14.292,244.89,244.6,0.5]
[1732203715712,14.292,244.89,244.59,0.5]
[1732203715909,31.09684237,244.79,244.68,31.09684237]
[1732203716211,31.09684237,244.85,244.74,31.09684237]
[1732203716413,31.09684237,244.89,244.78,31.09684237]
[1732203717036,31.09684237,244.89,244.8,31.09684237]
[1732203717315,4.0826,244.94,244.81,20.0]
[1732203717316,31.09684237,244.91,244.81,20.0]
[1732203717819,31.09684237,244.95,244.85,20.0]
[1732203718018,31.09684237,244.97,244.86,31.09684237]
[1732203718311,31.09684237,244.93,244.83,20.0]
[1732203718821,31.09684237,244.95,244.85,20.0]
[1732203719318,31.09684237,244.98,244.88,20.0]
[1732203719615,31.09684237,244.96,244.88,20.0]
[1732203720008,31.09684237,244.89,244.77,51.09684237]
[1732203720227,31.09684237,244.92,244.81,31.09684237]
[1732203720403,14.2839,245.03,244.86,20.0]
[1732203720404,31.09684237,244.95,244.86,20.0]
[1732203721026,31.09684237,244.93,244.84,20.0]
[1732203721215,31.09684237,244.91,244.82,20.0]
[1732203721401,4.0811,245.03,244.86,20.0]
[1732203721720,4.0811,245.03,244.76,14.2877]
[1732203721721,31.09684237,244.91,244.79,31.09684237]
[1732203722099,31.09684237,244.82,244.73,31.09684237]
[1732203722403,31.09684237,244.76,244.7,32.5726]
[1732203722606,31.09684237,244.92,244.74,31.09684237]
[1732203722607,31.09684237,244.85,244.74,31.09684237]
[1732203722955,51.8,245.02,244.7,32.5726]
[1732203722956,31.09684237,244.84,244.73,31.09684237]
[1732203723114,31.09684237,244.8,244.7,32.5726]
[1732203723299,31.09684237,244.8,244.7,63.66944237]
[1732203723502,4.0837,244.88,244.76,31.09684237]
[1732203723503,31.09684237,244.84,244.76,31.09684237]
[1732203723700,31.09684237,244.84,244.75,20.0]
[1732203723701,31.09684237,244.9,244.79,20.0]
[1732203723917,31.09684237,245.04,244.83,0.5]
[1732203724099,4.0807,245.05,244.84,12.5841]
[1732203724307,0.5,245.09,244.87,20.0]
[1732203724511,31.09684237,244.95,244.87,20.0]
[1732203724712,31.09684237,244.98,244.87,51.09684237]
[1732203724910,14.281,245.08,244.84,12.5841]
[1732203724911,4.0803,245.08,244.9,32.1162]
[1732203725123,31.09684237,245.1,244.99,31.09684237]
[1732203725315,31.09684237,245.14,245.05,31.09684237]
[1732203725518,4.0786,245.18,245.07,51.09684237]
[1732203725519,31.09684237,245.18,245.07,51.09684237]
[1732203725715,31.09684237,245.18,245.1,20.0]
[1732203725918,31.09684237,245.18,244.99,0.5]
[1732203725919,31.09684237,245.14,245.05,31.09684237]
[1732203726229,31.09684237,245.18,245.09,20.0]
[1732203726416,31.09684237,245.2,245.1,31.09684237]
[1732203726603,31.09684237,245.16,245.04,12.328]
[1732203726799,4.0771,245.27,245.05,43.776884]
[1732203727198,31.09684237,245.2,245.11,20.0]
[1732203727724,31.09684237,245.18,245.09,20.0]
[1732203727925,31.09684237,245.16,245.04,43.42484237]
[1732203728116,31.09684237,245.13,245.05,20.0]
[1732203728301,31.09684237,245.17,245.05,20.0]
[1732203728508,31.09684237,245.15,245.05,51.09684237]
[1732203728705,4.0768,245.29,245.11,31.09684237]
[1732203729032,31.09684237,245.26,245.15,31.09684237]
[1732203729406,31.09684237,245.22,245.12,20.0]
[1732203729807,0.5,245.34,245.12,20.0]
[1732203729808,10.1849,245.46,245.22,20.0]
[1732203730011,31.09684237,245.37,245.27,20.0]
[1732203730205,10.1849,245.46,245.27,20.0]
[1732203730206,31.09684237,245.39,245.28,31.09684237]
[1732203730423,4.0716,245.61,245.41,20.5]
[1732203730612,31.09684237,245.6,245.5,31.09684237]
[1732203730822,31.09684237,245.76,245.42,23.776884]
[1732203730823,31.09684237,245.64,245.53,31.09684237]
[1732203731201,31.09684237,245.6,245.5,20.0]
[1732203731523,4.0708,245.66,245.46,20.0]
[1732203731524,31.09684237,245.56,245.46,20.0]
[1732203731728,31.09684237,245.58,245.47,31.09684237]
[1732203731912,31.09684237,245.62,245.53,31.09684237]
[1732203732108,31.09684237,245.6,245.51,31.09684237]
[1732203732412,31.09684237,245.62,245.52,20.0]
[1732203733129,31.09684237,245.64,245.53,31.09684237]
[1732203733314,31.59684237,245.76,245.52,20.0]
[1732203733315,31.09684237,245.69,245.59,31.09684237]
[1732203733725,31.09684237,245.67,245.57,31.09684237]
[1732203733901,31.09684237,245.65,245.55,31.09684237]
[1732203734105,31.09684237,245.67,245.57,31.09684237]
[1732203734429,0.5,245.77,245.63,31.09684237]
[1732203734430,31.09684237,245.73,245.63,31.09684237]
[1732203734624,31.09684237,245.75,245.65,31.09684237]
[1732203734925,4.0688,245.77,245.52,63.25214237]
[1732203734926,35.16564237,245.77,245.67,31.09684237]
[1732203735125,4.0683,245.8,245.69,31.09684237]
[1732203735447,4.0683,245.8,245.64,31.09684237]
[1732203735448,31.09684237,245.81,245.71,31.09684237]
[1732203735615,31.09684237,245.79,245.69,31.09684237]
[1732203735812,31.09684237,245.77,245.67,31.09684237]
[1732203736132,31.09684237,245.81,245.69,31.09684237]
[1732203736316,31.09684237,245.78,245.69,31.09684237]
[1732203736516,4.0671,245.87,245.52,96.30154237]
[1732203736517,31.09684237,245.72,245.63,31.09684237]
[1732203736826,31.09684237,245.78,245.68,31.09684237]
[1732203737414,20.3329,245.91,245.69,20.0]
[1732203737731,31.09684237,245.84,245.75,31.09684237]
[1732203738038,31.09684237,245.84,245.73,31.09684237]
[1732203738236,31.09684237,245.84,245.74,20.0]
[1732203738407,31.09684237,245.86,245.76,31.09684237]
[1732203738612,4.0661,245.93,245.75,31.09684237]
[1732203738815,31.09684237,245.88,245.78,31.09684237]
[1732203739118,31.09684237,245.88,245.65,20.0]
[1732203739119,31.09684237,245.88,245.74,20.0]
[1732203739317,31.09684237,245.88,245.79,31.09684237]
[1732203739506,4.0661,245.93,245.79,31.09684237]
[1732203739507,31.09684237,245.9,245.8,20.0]
[1732203739706,31.09684237,245.88,245.77,31.09684237]
[1732203739903,31.09684237,245.88,245.79,31.09684237]
[1732203740238,31.09684237,245.88,245.8,20.0]
[1732203740409,35.16364237,245.9,245.8,20.0]
[1732203740609,31.09684237,245.88,245.8,20.0]
[1732203740821,0.5,246.03,245.84,31.09684237]
[1732203741125,31.09684237,245.86,245.76,31.09684237]
[1732203741327,31.09684237,245.81,245.72,31.09684237]
[1732203741532,31.09684237,245.81,245.7,31.09684237]
[1732203741744,12.3943,245.99,245.67,31.09684237]
[1732203741745,0.5,245.86,245.67,31.09684237]
[1732203741938,31.09684237,245.86,245.66,0.5]
[1732203742149,50.8067,246.03,245.84,31.09684237]
[1732203742434,31.09684237,245.94,245.82,31.09684237]
[1732203742615,31.09684237,245.96,245.86,31.09684237]
[1732203742816,31.09684237,245.98,245.86,31.09684237]
[1732203743027,35.16164237,246.01,245.91,31.09684237]
[1732203743243,31.09684237,245.99,245.89,31.09684237]
[1732203743445,4.0648,246.01,245.89,31.09684237]
[1732203743446,35.16164237,246.01,245.89,31.09684237]
[1732203743624,31.09684237,245.99,245.87,31.09684237]
[1732203743939,31.09684237,245.97,245.88,20.0]
[1732203744124,35.16164237,246.01,245.91,31.09684237]
[1732203744330,31.09684237,246.03,245.93,31.09684237]
[1732203744627,31.09684237,245.99,245.89,31.09684237]
[1732203744827,31.09684237,245.95,245.85,43.33924237]
[1732203745139,14.2223,246.09,245.85,43.33924237]
[1732203745140,31.09684237,245.97,245.87,31.09684237]
[1732203745747,31.09684237,245.93,245.84,20.0]
[1732203745921,31.09684237,245.93,245.83,31.09684237]
[1732203746425,31.09684237,245.93,245.79,31.09684237]
[1732203746426,31.09684237,245.89,245.79,31.09684237]
[1732203746621,31.09684237,245.93,245.83,31.09684237]
[1732203747222,31.09684237,245.95,245.85,31.09684237]
[1732203747750,31.09684237,245.95,245.86,20.0]
[1732203747925,31.09684237,245.97,245.87,31.09684237]
[1732203748251,31.09684237,245.95,245.85,31.09684237]
[1732203749121,31.09684237,245.97,245.87,31.09684237]
[1732203749328,54.87372637,245.95,245.85,31.09684237]
[1732203749542,31.09684237,245.95,245.85,31.09684237]
[1732203749732,23.24775256,246.09,245.91,31.09684237]
[1732203749733,31.09684237,246.01,245.91,31.09684237]
[1732203750034,31.09684237,245.99,245.89,31.09684237]
[1732203750237,31.09684237,246.03,245.93,31.09684237]
[1732203750429,31.09684237,246.07,245.95,31.09684237]
[1732203750824,31.09684237,246.04,245.96,20.0]
[1732203751150,31.09684237,246.06,245.97,31.09684237]
[1732203751440,4.0634,246.1,245.98,31.09684237]
[1732203751622,31.09684237,246.08,245.98,31.09684237]
[1732203751942,2.87944165,246.18,245.96,20.0]
[1732203751943,31.09684237,246.18,246.07,20.0]
[1732203752143,31.09684237,246.2,246.1,31.09684237]
[1732203752967,31.09684237,246.18,246.08,31.09684237]
[1732203753154,4.0622,246.17,246.08,31.09684237]
[1732203753740,4.0622,246.17,246.06,31.09684237]
[1732203753741,31.09684237,246.16,246.06,31.09684237]
[1732203754148,31.09684237,246.13,246.04,31.09684237]
[1732203754329,31.09684237,246.1,246.0,31.09684237]
[1732203755226,31.09684237,246.14,246.06,31.09684237]
[1732203755429,31.09684237,246.14,246.04,31.09684237]
[1732203756021,31.09684237,246.1,246.01,20.0]
[1732203756451,31.09684237,246.06,245.96,44.07054237]
[1732203756625,23.776884,246.14,245.98,31.09684237]
[1732203756626,31.09684237,246.08,245.98,31.09684237]
[1732203756831,31.09684237,246.1,246.0,31.09684237]
[1732203757237,4.0638,246.07,245.98,31.09684237]
[1732203757420,23.776884,246.14,245.96,12.9737]
[1732203757421,31.09684237,246.1,246.0,31.09684237]
[1732203757626,31.09684237,246.1,245.96,12.9737]
[1732203757627,4.0628,246.13,246.05,31.09684237]
[1732203757839,10.6543,246.21,246.05,31.09684237]
[1732203757840,4.0626,246.15,246.05,31.09684237]
[1732203758149,31.09684237,246.16,246.05,31.09684237]
[1732203758327,20.2952,246.37,246.0,31.09684237]
[1732203758328,10.1512,246.28,246.12,31.09684237]
[1732203758528,31.09684237,246.2,246.1,31.09684237]
[1732203758740,31.09684237,246.2,246.09,31.09684237]
[1732203758945,31.09684237,246.2,246.1,20.0]
[1732203759131,31.09684237,246.2,246.11,31.09684237]
[1732203759449,10.1487,246.34,246.18,20.0]
[1732203759755,31.09684237,246.28,246.18,20.0]
[1732203759924,31.09684237,246.26,246.18,20.0]
[1732203760129,31.09684237,246.28,246.17,54.87372637]
[1732203760343,31.09684237,246.28,246.19,31.09684237]
[1732203760530,31.09684237,246.33,246.21,31.09684237]
[1732203760735,31.09684237,246.31,246.2,20.0]
[1732203761332,14.2048,246.4,246.23,31.09684237]
[1732203761655,14.2048,246.4,246.2,20.0]
[1732203761656,31.09684237,246.38,246.27,31.09684237]
[1732203761856,31.09684237,246.36,246.26,20.0]
[1732203762031,31.09684237,246.36,246.27,23.776884]
[1732203762234,31.09684237,246.36,246.26,20.0]
[1732203762434,31.09684237,246.31,246.21,31.09684237]
[1732203762661,31.09684237,246.24,246.08,12.8391]
[1732203762833,31.09684237,246.22,246.11,31.09684237]
[1732203763038,31.09684237,246.24,246.13,31.09684237]
[1732203763336,31.09684237,246.24,246.15,31.09684237]
[1732203763641,31.09684237,246.24,246.08,12.8391]
[1732203763642,31.09684237,246.24,246.13,31.09684237]
[1732203764160,31.09684237,246.29,246.18,31.09684237]
[1732203764460,10.1459,246.41,246.12,31.59684237]
[1732203764461,31.09684237,246.33,246.22,31.09684237]
[1732203764647,31.09684237,246.27,246.16,31.09684237]
[1732203765034,31.09684237,246.29,246.19,43.776884]
[1732203765235,31.09684237,246.29,246.19,20.0]
[1732203765451,31.09684237,246.26,246.19,20.0]
[1732203765757,31.09684237,246.24,246.13,31.09684237]
[1732203765952,31.09684237,246.26,246.15,31.09684237]
[1732203766138,0.5,246.32,246.08,12.8391]
[1732203766336,31.09684237,246.21,246.09,31.09684237]
[1732203766533,31.09684237,246.21,246.11,31.09684237]
[1732203766740,31.09684237,246.23,246.11,31.09684237]
[1732203767237,31.09684237,246.25,246.15,31.09684237]
[1732203767430,31.09684237,246.25,246.13,31.09684237]
[1732203767638,31.09684237,246.23,246.13,31.09684237]
[1732203767966,31.09684237,246.25,246.14,20.0]
[1732203768555,31.09684237,246.22,246.14,20.0]
[1732203768735,31.09684237,246.24,246.14,20.0]
[1732203769255,31.09684237,246.28,246.2,20.0]
[1732203769860,31.09684237,246.32,246.21,31.09684237]
[1732203770055,31.09684237,246.34,246.24,20.0]
[1732203770938,31.09684237,246.32,246.22,20.0]
[1732203771134,31.09684237,246.3,246.22,20.0]
[1732203771359,31.09684237,246.3,246.2,20.0]
[1732203771561,31.09684237,246.32,246.21,31.09684237]
[1732203771746,4.0581,246.42,246.26,20.0]
[1732203771958,31.09684237,246.37,246.26,20.0]
[1732203772136,31.09684237,246.35,246.26,20.0]
[1732203772657,31.09684237,246.33,246.24,20.0]
[1732203772859,31.09684237,246.33,245.99,33.1981]
[1732203772860,31.09684237,246.31,246.19,31.09684237]
[1732203773063,31.09684237,246.36,246.17,31.09684237]
[1732203773064,31.09684237,246.27,246.17,31.09684237]
[1732203773564,31.09684237,246.31,246.2,31.09684237]
[1732203773772,31.09684237,246.27,246.16,31.09684237]
[1732203773939,31.09684237,246.29,246.18,31.09684237]
[1732203774340,14.2073,246.35,246.22,31.09684237]
[1732203774551,35.15604237,246.35,246.22,31.09684237]
[1732203774749,31.09684237,246.31,246.2,31.09684237]
[1732203775060,4.0586,246.39,246.12,31.59684237]
[1732203775241,31.09684237,246.36,246.25,31.09684237]
[1732203775643,31.09684237,246.36,246.12,31.59684237]
[1732203775644,31.09684237,246.34,246.23,31.09684237]
[1732203775947,31.09684237,246.34,246.24,20.0]
[1732203776138,31.09684237,246.32,246.21,31.09684237]
[1732203776339,31.09684237,246.32,246.22,20.0]
[1732203776960,31.09684237,246.39,246.28,31.09684237]
[1732203777149,31.09684237,246.41,246.31,20.0]
[1732203777353,31.09684237,246.37,246.26,31.09684237]
[1732203777546,4.0581,246.42,246.27,20.0]
[1732203777760,31.09684237,246.35,246.27,20.0]
[1732203778146,31.09684237,246.31,246.22,20.0]
[1732203778343,0.5,246.44,246.25,23.776884]
[1732203778652,31.09684237,246.33,246.25,23.776884]
[1732203778860,31.09684237,246.26,246.16,31.09684237]
[1732203779168,31.09684237,246.32,246.2,31.09684237]
[1732203779375,31.09684237,246.32,246.22,31.09684237]
[1732203780254,4.0594,246.34,246.16,31.09684237]
[1732203780255,31.09684237,246.27,246.16,31.09684237]
[1732203780675,31.09684237,246.27,246.08,43.4399]
[1732203780676,0.5,246.43,246.23,31.09684237]
[1732203780857,14.2004,246.47,246.12,31.09684237]
[1732203780858,31.09684237,246.3,246.19,31.09684237]
[1732203781059,31.09684237,246.25,246.06,0.5]
[1732203781259,31.09684237,246.23,246.12,31.09684237]
[1732203781567,12.8876,246.35,246.19,31.09684237]
[1732203781568,31.09684237,246.3,246.19,31.09684237]
[1732203781781,31.09684237,246.26,246.15,31.09684237]
[1732203782075,31.09684237,246.24,246.13,31.09684237]
[1732203782276,31.09684237,246.24,246.0,31.09684237]
[1732203782277,31.09684237,246.2,246.09,31.09684237]
[1732203782454,31.09684237,246.18,246.07,31.09684237]